bitfinex/quotes_BTCUSD_20250902
["timestamp","ask_amount","ask_price","bid_price","bid_amount"]
[1756802846861,0.00014113,110730.0,110720.0,2.58229145]
[1756802847077,0.00014113,110730.0,110720.0,2.51757827]
[1756802847286,0.00014113,110730.0,110720.0,2.30053827]
[1756802847505,0.00014113,110730.0,110720.0,1.94766623]
[1756802852397,0.00014113,110730.0,110720.0,2.0123778]
[1756802853101,0.00014113,110730.0,110720.0,1.94766623]
[1756802853462,0.00014113,110730.0,110720.0,2.01237839]
[1756802855197,0.00493113,110730.0,110720.0,1.23332829]
[1756802855446,0.00212113,110730.0,110720.0,1.60702839]
[1756802855621,0.00212113,110730.0,110720.0,1.58608957]
[1756802855819,0.00212113,110730.0,110720.0,1.60702839]
[1756802856247,0.00212113,110730.0,110720.0,1.61237839]
[1756802859436,0.00212113,110730.0,110720.0,2.01237839]
[1756802859968,0.00014113,110730.0,110720.0,2.01237839]
[1756802860415,0.00212113,110730.0,110720.0,2.01237839]
[1756802861234,0.00212113,110730.0,110720.0,1.61237839]
[1756802861740,0.00212113,110730.0,110720.0,2.01237839]
[1756802862190,0.00212113,110730.0,110720.0,1.61237839]
[1756802862572,0.00212113,110730.0,110720.0,2.01237839]
[1756802862773,0.00212113,110730.0,110720.0,1.85953839]
[1756802863188,0.00212113,110730.0,110720.0,1.97183703]
[1756802863607,0.00212113,110730.0,110720.0,1.81899703]
[1756802863815,0.00212113,110730.0,110720.0,1.61907575]
[1756802864057,0.00212113,110730.0,110720.0,1.97183703]
[1756802865577,0.00212113,110730.0,110720.0,1.81899703]
[1756802865751,0.00212113,110730.0,110720.0,1.97183703]
[1756802865943,0.00212113,110730.0,110720.0,1.81899703]
[1756802866475,0.00212113,110730.0,110720.0,1.97179703]
[1756802866641,0.00212113,110730.0,110720.0,2.01178525]
[1756802867830,0.00212113,110730.0,110720.0,1.85363525]
[1756802868056,0.00212113,110730.0,110720.0,2.00643525]
[1756802868500,0.00212113,110730.0,110720.0,2.01152525]
[1756802868917,0.00212113,110730.0,110720.0,1.61152525]
[1756802870405,0.00212113,110730.0,110720.0,1.25876397]
[1756802870654,0.00212113,110730.0,110720.0,1.61152525]
[1756802872571,0.00212113,110730.0,110720.0,0.84896181]
[1756802872823,0.00212113,110730.0,110720.0,0.82802299]
[1756802873102,0.00493113,110730.0,110720.0,0.82802299]
[1756802873340,0.00212113,110730.0,110720.0,0.82802299]
[1756802875234,0.00212113,110730.0,110720.0,0.67522299]
[1756802875434,0.00212113,110730.0,110720.0,0.82802299]
[1756802877024,0.00212113,110730.0,110720.0,0.67522299]
[1756802877235,0.00212113,110730.0,110720.0,0.82802299]
[1756802878019,0.00212113,110730.0,110720.0,0.67522299]
[1756802878020,0.00493113,110730.0,110720.0,0.67522299]
[1756802878252,0.00493113,110730.0,110720.0,0.80088075]
[1756802878473,0.00212113,110730.0,110720.0,0.80088075]
[1756802881284,0.00212113,110730.0,110720.0,0.80393075]
[1756802881810,0.00212113,110730.0,110720.0,0.80088075]
[1756802882004,0.00212113,110730.0,110720.0,0.80393075]
[1756802882529,0.00212113,110730.0,110720.0,0.80597075]
[1756802883185,0.18274065,110730.0,110720.0,0.80597075]
[1756802884345,0.18274065,110730.0,110720.0,0.80088075]
[1756802884540,0.18274065,110730.0,110720.0,0.64808075]
[1756802884785,0.18274065,110730.0,110720.0,0.80088075]
[1756802885024,0.53831193,110730.0,110720.0,0.20442421]
[1756802885447,0.5654632,110730.0,110720.0,0.20442421]
[1756802885595,0.5654632,110730.0,110720.0,0.35718421]
[1756802885829,0.5654632,110730.0,110720.0,0.16443599]
[1756802886030,1.25822448,110730.0,110720.0,0.31719599]
[1756802886233,0.9054632,110730.0,110720.0,0.31719599]
[1756802886452,1.25822448,110730.0,110720.0,0.16443599]
[1756802886652,1.25822448,110730.0,110720.0,0.31619599]
[1756802886851,1.25822448,110730.0,110720.0,4e-05]
[1756802887127,1.31934445,110730.0,110720.0,4e-05]
[1756802887950,1.25822448,110730.0,110720.0,4e-05]
[1756802889011,0.55270192,110730.0,110720.0,4e-05]
[1756802889220,1.25822448,110730.0,110720.0,4e-05]
[1756802891789,1.41102448,110730.0,110720.0,4e-05]
[1756802893858,0.18065215,110710.0,110700.0,0.26489451]
[1756802894059,0.53341343,110710.0,110700.0,0.53957897]
[1756802894264,0.18262215,110710.0,110700.0,0.3589105]
[1756802894470,0.53538343,110710.0,110700.0,0.53957897]
[1756802894692,0.53538343,110710.0,110700.0,0.3589105]
[1756802895342,0.53538343,110710.0,110700.0,0.53957897]
[1756802895960,0.18065215,110710.0,110700.0,0.3589105]
[1756802896282,0.53341343,110710.0,110700.0,0.3589105]
[1756802896873,0.53538343,110710.0,110700.0,0.3589105]
[1756802897320,0.53538343,110710.0,110700.0,0.2061105]
[1756802897525,0.53538343,110710.0,110700.0,0.3589105]
[1756802898050,0.53820343,110710.0,110700.0,0.09191599]
[1756802898255,0.56536102,110710.0,110700.0,0.24471599]
[1756802898695,0.56536102,110710.0,110700.0,0.09191599]
[1756802898696,0.90536102,110710.0,110700.0,0.09191599]
[1756802898896,0.90536102,110710.0,110700.0,0.24471599]
[1756802899287,0.18068479,110690.0,110680.0,0.52544536]
[1756802899487,0.18068479,110690.0,110680.0,0.50896135]
[1756802900373,0.18068479,110690.0,110680.0,0.55055079]
[1756802901101,0.18068479,110690.0,110680.0,0.55155079]
[1756802901311,0.18068479,110690.0,110680.0,0.20901543]
[1756802901534,0.53344607,110690.0,110680.0,0.36181543]
[1756802901763,0.53541607,110690.0,110680.0,0.36181543]
[1756802902500,0.53541607,110690.0,110680.0,0.36281543]
[1756802903145,0.53541607,110690.0,110680.0,0.32022599]
[1756802903352,0.53541607,110690.0,110680.0,0.31922599]
[1756802903780,0.53344607,110690.0,110680.0,0.31922599]
[1756802903979,0.53344607,110690.0,110680.0,0.31625599]
[1756802904182,0.56060364,110700.0,110680.0,0.49992711]
[1756802904359,0.18068479,110690.0,110680.0,0.49992711]
[1756802906464,0.18168479,110690.0,110680.0,0.49992711]
[1756802908764,0.18168479,110690.0,110680.0,0.31922599]
[1756802909014,0.18168479,110690.0,110680.0,0.49992711]
[1756802909671,0.53490826,110690.0,110680.0,0.49992711]
[1756802909929,0.53490826,110690.0,110680.0,0.34712711]
[1756802910129,0.53490826,110690.0,110680.0,0.49988711]
[1756802910482,0.53490826,110690.0,110680.0,0.5399142]
[1756802912126,0.18168479,110690.0,110680.0,0.5399142]
[1756802912310,0.53490826,110690.0,110680.0,0.5399142]
[1756802914877,0.18168479,110690.0,110680.0,0.5399142]
[1756802915106,0.001,110690.0,110680.0,0.5399142]
[1756802915326,0.53490826,110690.0,110680.0,0.5399142]
[1756802916265,0.56206947,110690.0,110680.0,0.5399142]
[1756802918909,0.56403947,110690.0,110680.0,0.5399142]
[1756802919579,0.56403947,110690.0,110680.0,0.35921308]
[1756802919797,0.56403947,110690.0,110680.0,0.5348442]
[1756802920025,0.56403947,110690.0,110680.0,0.3820842]
[1756802920252,0.210816,110690.0,110680.0,0.35414308]
[1756802920449,0.56403947,110690.0,110680.0,0.5348442]
[1756802920651,0.56403947,110690.0,110680.0,0.5379142]
[1756802920815,0.56403947,110690.0,110680.0,0.5400542]
[1756802922258,0.38335468,110690.0,110680.0,0.5400542]
[1756802922475,0.56206947,110690.0,110680.0,0.5400542]
[1756802922693,0.56404947,110690.0,110680.0,0.20138308]
[1756802922904,0.56404947,110690.0,110680.0,0.4654042]
[1756802923130,0.56404947,110690.0,110680.0,0.42537711]
[1756802923332,0.56404947,110690.0,110680.0,0.24467599]
[1756802925435,0.56404947,110690.0,110680.0,0.09191599]
[1756802925633,0.56404947,110690.0,110680.0,0.24467599]
[1756802926480,0.56404947,110690.0,110680.0,0.42537711]
[1756802926828,0.210826,110690.0,110680.0,0.43058711]
[1756802927053,0.56404947,110690.0,110680.0,0.43058711]
[1756802928296,0.53688826,110690.0,110680.0,0.43058711]
[1756802928479,0.18366479,110690.0,110680.0,0.43058711]
[1756802928688,0.53688826,110690.0,110680.0,0.43058711]
[1756802928918,0.53688826,110690.0,110680.0,0.27782711]
[1756802929128,0.18366479,110690.0,110680.0,0.43058711]
[1756802929331,0.53490826,110690.0,110680.0,0.43058711]
[1756802930569,0.53688826,110690.0,110680.0,0.43058711]
[1756802934041,0.53688826,110690.0,110680.0,0.27782711]
[1756802934232,0.53490826,110690.0,110680.0,0.43054711]
[1756802934648,0.53688826,110690.0,110680.0,0.43054711]
[1756802935059,0.53688826,110690.0,110680.0,0.42747711]
[1756802935258,0.53688826,110690.0,110680.0,0.24677599]
[1756802935493,0.53688826,110690.0,110680.0,0.42747711]
[1756802935695,0.53688826,110690.0,110680.0,0.42533711]
[1756802936245,0.53688826,110690.0,110680.0,0.24463599]
[1756802936881,0.18366479,110690.0,110680.0,0.42840711]
[1756802937059,0.53688826,110690.0,110680.0,0.42840711]
[1756802937671,0.53688826,110690.0,110680.0,0.09191599]
[1756802937915,0.53688826,110690.0,110680.0,0.24463599]
[1756802938108,0.53688826,110690.0,110680.0,0.09191599]
[1756802938269,0.53688826,110690.0,110680.0,0.24463599]
[1756802938738,0.53688826,110690.0,110680.0,0.42533711]
[1756802939950,0.53688826,110690.0,110680.0,0.24463599]
[1756802940275,0.53688826,110690.0,110680.0,0.42533711]
[1756802941645,0.18366479,110690.0,110680.0,0.43054711]
[1756802941827,0.53688826,110690.0,110680.0,0.27782711]
[1756802942032,0.53688826,110690.0,110680.0,0.43054711]
[1756802942466,0.53688826,110690.0,110680.0,0.42533711]
[1756802942662,0.53688826,110690.0,110680.0,0.24463599]
[1756802945331,0.53688826,110690.0,110680.0,0.42533711]
[1756802945529,0.53688826,110690.0,110680.0,0.09191599]
[1756802945734,0.53688826,110690.0,110680.0,0.24459599]
[1756802946148,0.53688826,110690.0,110680.0,0.24766599]
[1756802946356,0.53688826,110690.0,110680.0,0.24980599]
[1756802946722,0.18366479,110690.0,110680.0,0.43050711]
[1756802946922,0.53688826,110690.0,110680.0,0.24980599]
[1756802947331,0.18366479,110690.0,110680.0,0.24980599]
[1756802947531,0.53688826,110690.0,110680.0,0.24980599]
[1756802947984,0.53688826,110690.0,110680.0,0.24459599]
[1756802948151,0.53688826,110690.0,110680.0,0.24980599]
[1756802948728,0.53688826,110690.0,110680.0,0.43050711]
[1756802948873,0.53688826,110690.0,110680.0,0.24980599]
[1756802950705,0.53688826,110690.0,110680.0,0.43050711]
[1756802951305,0.53688826,110690.0,110680.0,0.24980599]
[1756802951306,0.56405037,110690.0,110680.0,0.24980599]
[1756802951850,0.56405037,110690.0,110680.0,0.2471866]
[1756802953229,0.56405037,110690.0,110680.0,0.0945066]
[1756802953430,0.56405037,110690.0,110680.0,0.2419366]
[1756802954623,0.18070112,110680.0,110670.0,0.00301]
[1756802954829,0.53392459,110680.0,110670.0,0.24756599]
[1756802955031,0.53392459,110680.0,110670.0,0.24960599]
[1756802955443,0.56108806,110680.0,110670.0,0.24960599]
[1756802955642,0.56307806,110680.0,110670.0,0.09696599]
[1756802955849,0.56307806,110680.0,110670.0,0.43032343]
[1756802955988,0.56307806,110680.0,110670.0,0.43132343]
[1756802956226,0.56307806,110680.0,110670.0,0.27868343]
[1756802956464,0.20786459,110680.0,110670.0,0.43132343]
[1756802956811,0.20786459,110680.0,110670.0,0.7845469]
[1756802959761,0.20786459,110680.0,110670.0,0.43132343]
[1756802959993,0.20786459,110680.0,110670.0,0.7845469]
[1756802960886,0.02716347,110680.0,110670.0,0.7845469]
[1756802961139,0.33332479,110690.0,110680.0,0.18068998]
[1756802961343,0.02716163,110690.0,110680.0,0.62786944]
[1756802961561,0.02716163,110690.0,110680.0,0.63087944]
[1756802962640,0.02816163,110690.0,110680.0,0.63087944]
[1756802963035,0.20884642,110690.0,110680.0,0.63087944]
[1756802963239,0.02816163,110690.0,110680.0,0.63087944]
[1756802964593,0.20884642,110690.0,110680.0,0.63087944]
[1756802965383,0.02816163,110690.0,110680.0,0.63087944]
[1756802966473,0.02816163,110690.0,110680.0,0.98410291]
[1756802966709,0.02816163,110690.0,110680.0,1.00865291]
[1756802967092,0.001,110690.0,110680.0,1.00865291]
[1756802969384,0.001,110690.0,110680.0,0.65542944]
[1756802969602,0.001,110690.0,110680.0,0.65535886]
[1756802969831,0.001,110690.0,110680.0,0.3435635]
[1756802971277,0.001,110690.0,110680.0,0.69671639]
[1756802973611,0.001,110690.0,110680.0,0.70596604]
[1756802973823,0.001,110690.0,110680.0,0.72690486]
[1756802975014,0.72248837,110720.0,110700.0,0.18065404]
[1756802975365,0.02729675,110720.0,110710.0,0.29855696]
[1756802975562,0.0001411,110720.0,110710.0,1.36941274]
[1756802975767,0.0001411,110720.0,110710.0,1.01625985]
[1756802975988,0.0001411,110720.0,110710.0,2.0047849]
[1756802976188,0.0001411,110720.0,110710.0,1.66067754]
[1756802976738,0.0001411,110720.0,110710.0,1.50811754]
[1756802976943,0.0001411,110720.0,110710.0,1.66067754]
[1756802977346,0.0001411,110720.0,110710.0,1.59596538]
[1756802978369,0.0001411,110720.0,110710.0,1.59796538]
[1756802978569,0.0001411,110720.0,110710.0,1.59896538]
[1756802978975,0.0001411,110720.0,110710.0,1.63928261]
[1756802979402,0.0001411,110720.0,110710.0,1.63924261]
[1756802980819,0.0001411,110720.0,110710.0,1.48672261]
[1756802981054,0.00124917,110760.0,110750.0,0.1805869]
[1756802981229,0.00139025,110760.0,110750.0,0.69509578]
[1756802981571,0.00139025,110760.0,110750.0,0.8736946]
[1756802981717,0.00139025,110760.0,110750.0,1.3008318]
[1756802982139,0.00139025,110760.0,110750.0,0.9008318]
[1756802982558,0.00139025,110760.0,110750.0,0.9018318]
[1756802983723,0.00139025,110760.0,110750.0,0.9017918]
[1756802983929,0.00139025,110760.0,110750.0,0.94197249]
[1756802984735,0.00139025,110760.0,110750.0,0.78949249]
[1756802984945,0.00139025,110760.0,110750.0,0.94197249]
[1756802986389,0.00139025,110760.0,110750.0,0.78949249]
[1756802986590,0.00139025,110760.0,110750.0,0.94193249]
[1756802986916,0.00139025,110760.0,110750.0,0.78949249]
[1756802987111,0.00337025,110760.0,110750.0,0.5836396]
[1756802987359,0.00337025,110760.0,110750.0,0.5887796]
[1756802987564,0.00337025,110760.0,110750.0,0.91479529]
[1756802988513,0.00337025,110760.0,110750.0,0.76235529]
[1756802988700,0.00337025,110760.0,110750.0,0.91479529]
[1756802989560,0.00337025,110760.0,110750.0,0.5616424]
[1756802990916,0.00337025,110760.0,110750.0,0.4092024]
[1756802991144,0.00337025,110760.0,110750.0,0.5616424]
[1756802992246,0.00337025,110760.0,110750.0,0.5616024]
[1756802992708,0.00139025,110760.0,110750.0,0.5616024]
[1756802992988,0.00139025,110760.0,110750.0,0.91475529]
[1756802993809,0.00139025,110760.0,110750.0,0.5616024]
[1756802994020,0.00139025,110760.0,110750.0,0.91475529]
[1756802996206,0.00139025,110760.0,110750.0,0.76235529]
[1756802996385,0.00139025,110760.0,110750.0,0.91475529]
[1756802996844,0.00139025,110760.0,110750.0,0.5616024]
[1756802997047,0.00139025,110760.0,110750.0,0.91475529]
[1756802998512,0.00139025,110760.0,110750.0,0.4092024]
[1756802998774,0.00337025,110760.0,110750.0,0.38826358]
[1756802998996,0.18394085,110760.0,110750.0,0.38312358]
[1756802999205,0.18394085,110760.0,110750.0,0.53548358]
[1756802999854,0.53709374,110760.0,110750.0,0.53548358]
[1756803000264,0.53709374,110760.0,110750.0,0.38312358]
[1756803000489,0.53709374,110760.0,110750.0,0.53548358]
[1756803001071,0.35652314,110760.0,110750.0,0.53548358]
[1756803001272,0.00139025,110760.0,110750.0,0.54062358]
[1756803001474,0.35454314,110760.0,110750.0,0.54062358]
[1756803002251,0.00337025,110760.0,110750.0,0.54062358]
[1756803002451,0.35652314,110760.0,110750.0,0.54062358]
[1756803002654,0.53709374,110760.0,110750.0,0.54062358]
[1756803003627,0.53709374,110760.0,110750.0,0.53548358]
[1756803004695,0.53709374,110760.0,110750.0,0.38312358]
[1756803004899,0.53709374,110760.0,110750.0,0.53548358]
[1756803005126,0.00139025,110760.0,110750.0,0.54062358]
[1756803005332,0.35454314,110760.0,110750.0,0.54062358]
[1756803005746,0.35454314,110760.0,110750.0,0.36003668]
[1756803005948,0.00139025,110760.0,110750.0,0.36003668]
[1756803012657,0.00139025,110760.0,110750.0,0.20767668]
[1756803012658,0.35454314,110760.0,110750.0,0.20767668]
[1756803012874,0.35652314,110760.0,110750.0,0.20253668]
[1756803013094,0.35933314,110760.0,110750.0,0.16235599]
[1756803013298,0.35933314,110760.0,110750.0,0.31467599]
[1756803013511,0.35652314,110760.0,110750.0,0.31467599]
[1756803014194,0.35652314,110760.0,110750.0,0.16727599]
[1756803014453,0.35652314,110760.0,110750.0,0.31959599]
[1756803015430,0.35652314,110760.0,110750.0,0.16727599]
[1756803015694,0.35652314,110760.0,110750.0,0.31959599]
[1756803016157,0.35652314,110760.0,110750.0,0.16727599]
[1756803016376,0.35652314,110760.0,110750.0,0.31959599]
[1756803016829,0.35652314,110760.0,110750.0,0.35995559]
[1756803018130,0.35652314,110760.0,110750.0,0.20763559]
[1756803018325,0.35652314,110760.0,110750.0,0.35995559]
[1756803019790,0.35652314,110760.0,110750.0,0.20763559]
[1756803020215,0.35652314,110760.0,110750.0,0.35991559]
[1756803021596,0.35652314,110760.0,110750.0,0.20763559]
[1756803022026,0.35652314,110760.0,110750.0,0.35991559]
[1756803022355,0.35652314,110760.0,110750.0,0.20763559]
[1756803022488,0.35652314,110760.0,110750.0,0.35991559]
[1756803022909,0.35652314,110760.0,110750.0,0.20763559]
[1756803023117,0.35652314,110760.0,110750.0,0.31955599]
[1756803023563,0.35652314,110760.0,110750.0,0.16727599]
[1756803023776,0.35652314,110760.0,110750.0,0.32181332]
[1756803023982,0.35652314,110760.0,110750.0,0.31955599]
[1756803024191,0.35652314,110760.0,110750.0,0.16727599]
[1756803024425,0.35652314,110760.0,110750.0,0.32181332]
[1756803024607,0.35652314,110760.0,110750.0,0.31955599]
[1756803025585,0.35652314,110760.0,110750.0,0.16727599]
[1756803025783,0.35652314,110760.0,110750.0,0.31955599]
[1756803026167,0.35652314,110760.0,110750.0,0.16235599]
[1756803026407,0.35933314,110760.0,110750.0,0.31463599]
[1756803026701,0.35933314,110760.0,110750.0,0.16235599]
[1756803026905,0.71248603,110760.0,110750.0,0.31463599]
[1756803027093,0.35933314,110760.0,110750.0,0.31463599]
[1756803027298,0.35652314,110760.0,110750.0,0.31463599]
[1756803027940,0.35652314,110760.0,110750.0,0.16235599]
[1756803028331,0.35652314,110760.0,110750.0,0.31463599]
[1756803031537,0.70903927,110760.0,110750.0,0.31463599]
[1756803032100,0.70903927,110760.0,110750.0,0.16235599]
[1756803032313,0.70903927,110760.0,110750.0,0.31459599]
[1756803032532,0.71184927,110760.0,110750.0,0.16235599]
[1756803032743,0.71184927,110760.0,110750.0,0.31459599]
[1756803033178,0.70903927,110760.0,110750.0,0.31459599]
[1756803033865,0.70903927,110760.0,110750.0,0.09291599]
[1756803033990,0.70903927,110760.0,110750.0,0.24515599]
[1756803038624,0.70705927,110760.0,110750.0,0.25007599]
[1756803039233,0.70903927,110760.0,110750.0,0.25007599]
[1756803039885,0.70903927,110760.0,110750.0,0.24515599]
[1756803040618,0.70903927,110760.0,110750.0,0.25046599]
[1756803040868,0.00337025,110760.0,110750.0,0.25046599]
[1756803041170,0.00139025,110760.0,110750.0,0.25046599]
[1756803041455,0.00139025,110760.0,110750.0,0.6258105]
[1756803043824,0.00139025,110760.0,110750.0,0.12073599]
[1756803044023,0.35422476,110760.0,110750.0,0.12073599]
[1756803044231,0.35422476,110760.0,110750.0,0.25042599]
[1756803044443,0.35422476,110760.0,110750.0,0.09822599]
[1756803044664,0.35422476,110760.0,110750.0,0.25042599]
[1756803048016,0.35422476,110760.0,110750.0,0.12536608]
[1756803048245,0.35422476,110760.0,110750.0,0.25042599]
[1756803049827,0.00139025,110760.0,110750.0,0.25042599]
[1756803050035,0.35422476,110760.0,110750.0,0.25042599]
[1756803050662,0.70903927,110760.0,110750.0,0.24511599]
[1756803050865,0.71184927,110760.0,110750.0,0.24511599]
[1756803051485,0.70903927,110760.0,110750.0,0.24511599]
[1756803052671,0.88960987,110760.0,110750.0,0.42570289]
[1756803053355,0.89241987,110760.0,110750.0,0.09291599]
[1756803053652,0.89241987,110760.0,110750.0,0.24507599]
[1756803054100,0.88960987,110760.0,110750.0,0.42566289]
[1756803055466,0.88960987,110760.0,110750.0,0.42887289]
[1756803055695,0.88960987,110760.0,110750.0,0.42566289]
[1756803060788,0.88960987,110760.0,110750.0,0.27350289]
[1756803060971,0.88960987,110760.0,110750.0,0.42566289]
[1756803061465,0.70705927,110760.0,110750.0,0.27881289]
[1756803061876,0.70705927,110760.0,110750.0,0.43097289]
[1756803062107,0.00139025,110760.0,110750.0,0.27881289]
[1756803062307,0.70705927,110760.0,110750.0,0.27881289]
[1756803062538,0.70705927,110760.0,110750.0,0.43097289]
[1756803062751,0.70705927,110760.0,110750.0,0.27881289]
[1756803062965,0.70705927,110760.0,110750.0,0.43097289]
[1756803063183,0.70705927,110760.0,110750.0,0.27881289]
[1756803063402,0.70705927,110760.0,110750.0,0.43097289]
[1756803064295,0.70705927,110760.0,110750.0,0.50041289]
[1756803067439,0.70705927,110760.0,110750.0,0.50037289]
[1756803067440,0.88960987,110760.0,110750.0,0.50037289]
[1756803067664,0.88960987,110760.0,110750.0,0.49716289]
[1756803068099,0.88960987,110760.0,110750.0,0.34294289]
[1756803068290,0.88960987,110760.0,110750.0,0.49506289]
[1756803068537,0.88960987,110760.0,110750.0,0.50037289]
[1756803069432,0.88960987,110760.0,110750.0,0.34825289]
[1756803069658,0.89241987,110760.0,110750.0,0.49506289]
[1756803069801,0.88960987,110760.0,110750.0,0.49506289]
[1756803069993,0.88960987,110760.0,110750.0,0.50022289]
[1756803070594,0.88762987,110760.0,110750.0,0.50022289]
[1756803070848,0.88959987,110760.0,110750.0,0.50022289]
[1756803071060,0.70705927,110760.0,110750.0,0.50022289]
[1756803073371,0.00139025,110760.0,110750.0,0.50022289]
[1756803073587,0.70705927,110760.0,110750.0,0.50022289]
[1756803075021,0.00139025,110760.0,110750.0,0.50022289]
[1756803075228,0.35422476,110760.0,110750.0,0.50022289]
[1756803076635,0.70705927,110760.0,110750.0,0.50022289]
[1756803076846,0.70705927,110760.0,110750.0,0.34810289]
[1756803077047,0.70902927,110760.0,110750.0,0.34810289]
[1756803077258,0.70902927,110760.0,110750.0,0.50022289]
[1756803078192,0.70705927,110760.0,110750.0,0.50022289]
[1756803080489,0.70902927,110760.0,110750.0,0.34810289]
[1756803080725,0.70902927,110760.0,110750.0,0.50018289]
[1756803082438,0.70902927,110760.0,110750.0,0.34810289]
[1756803082675,0.70902927,110760.0,110750.0,0.50018289]
[1756803083300,0.00336025,110760.0,110750.0,0.34810289]
[1756803083501,0.70902927,110760.0,110750.0,0.50018289]
[1756803086026,0.70705927,110760.0,110750.0,0.50018289]
[1756803088188,0.70705927,110760.0,110750.0,0.34810289]
[1756803088373,0.70705927,110760.0,110750.0,0.50018289]
[1756803091536,0.35417688,110760.0,110750.0,0.50018289]
[1756803091735,0.35614688,110760.0,110750.0,0.34294289]
[1756803091953,0.35614688,110760.0,110750.0,0.49498289]
[1756803092151,0.00336025,110760.0,110750.0,0.49498289]
[1756803092356,0.35614688,110760.0,110750.0,0.49706289]
[1756803092579,0.35614688,110760.0,110750.0,0.50014289]
[1756803094289,0.88950411,110760.0,110750.0,0.34294289]
[1756803094497,0.89232411,110760.0,110750.0,0.16235599]
[1756803094704,0.89232411,110760.0,110750.0,0.49498289]
[1756803094907,0.88950411,110760.0,110750.0,0.49498289]
[1756803095533,0.70893351,110760.0,110750.0,0.49498289]
[1756803096180,0.88950411,110760.0,110750.0,0.49498289]
[1756803096594,0.89232411,110760.0,110750.0,0.31439599]
[1756803096818,0.89232411,110760.0,110750.0,0.49498289]
[1756803097017,0.88950411,110760.0,110750.0,0.49498289]
[1756803097497,0.89232411,110760.0,110750.0,0.31439599]
[1756803097669,0.89232411,110760.0,110750.0,0.49498289]
[1756803098065,0.88950411,110760.0,110750.0,0.49498289]
[1756803098947,0.88950411,110760.0,110750.0,0.34294289]
[1756803099199,0.88950411,110760.0,110750.0,0.49498289]
[1756803100122,0.88950411,110760.0,110750.0,0.34294289]
[1756803100590,0.88950411,110760.0,110750.0,0.49498289]
[1756803100819,0.88950411,110760.0,110750.0,0.34294289]
[1756803101033,0.88950411,110760.0,110750.0,0.49498289]
[1756803101238,0.88950411,110760.0,110750.0,0.34294289]
[1756803101441,0.88950411,110760.0,110750.0,0.49498289]
[1756803102462,0.88950411,110760.0,110750.0,0.34294289]
[1756803102647,0.88950411,110760.0,110750.0,0.49498289]
[1756803103265,0.88950411,110760.0,110750.0,0.31439599]
[1756803103753,0.88950411,110760.0,110750.0,0.16235599]
[1756803104203,0.89232411,110760.0,110750.0,0.49494289]
[1756803104420,0.88950411,110760.0,110750.0,0.49494289]
[1756803106687,0.88950411,110760.0,110750.0,0.34794289]
[1756803106923,0.88950411,110760.0,110750.0,0.49994289]
[1756803109559,1.23232411,110760.0,110750.0,0.001]
[1756803109769,1.23232411,110760.0,110750.0,0.153]
[1756803110387,1.25947067,110760.0,110750.0,0.153]
[1756803110615,1.25947067,110760.0,110750.0,0.152]
[1756803113682,1.25947067,110760.0,110730.0,0.2571413]
[1756803113683,0.18060321,110740.0,110730.0,0.18359499]
[1756803113896,0.53338984,110740.0,110730.0,0.42953098]
[1756803114365,0.35278663,110740.0,110730.0,0.42953098]
[1756803114981,0.35278663,110740.0,110730.0,0.43053098]
[1756803118947,0.20774828,110750.0,110740.0,0.18060321]
[1756803119151,0.56053491,110750.0,110740.0,0.2775192]
[1756803119354,0.56251491,110750.0,110740.0,0.4295192]
[1756803120785,0.56052009,110750.0,110740.0,0.4295192]
[1756803121006,0.53474748,110760.0,110750.0,0.1805869]
[1756803121233,0.56189028,110760.0,110750.0,0.34694289]
[1756803121455,0.38131968,110760.0,110750.0,0.34694289]
[1756803122106,0.56189028,110760.0,110750.0,0.34694289]
[1756803123114,0.91665691,110760.0,110750.0,0.49890289]
[1756803123794,0.20910365,110760.0,110750.0,0.49890289]
[1756803124016,0.91467691,110760.0,110750.0,0.49890289]
[1756803125252,0.56189028,110760.0,110750.0,0.49890289]
[1756803126623,0.56387028,110760.0,110750.0,0.49390289]
[1756803126852,0.91665691,110760.0,110750.0,0.31331599]
[1756803128861,0.91665691,110760.0,110750.0,0.16135599]
[1756803129082,0.91946691,110760.0,110750.0,0.31331599]
[1756803129317,0.91665691,110760.0,110750.0,0.31331599]
[1756803131100,0.91665691,110760.0,110750.0,0.16135599]
[1756803131391,0.91665691,110760.0,110750.0,0.31331599]
[1756803131612,0.91946691,110760.0,110750.0,0.16135599]
[1756803131831,0.91946691,110760.0,110750.0,0.31331599]
[1756803132661,0.21108365,110760.0,110750.0,0.16135599]
[1756803132881,0.91665691,110760.0,110750.0,0.31331599]
[1756803133071,0.91665691,110760.0,110750.0,0.16135599]
[1756803133523,0.91665691,110760.0,110750.0,0.31327599]
[1756803136075,0.20910365,110760.0,110750.0,0.49902289]
[1756803136293,0.91467691,110760.0,110750.0,0.49902289]
[1756803136505,0.91665691,110760.0,110750.0,0.31327599]
[1756803136731,0.91665691,110760.0,110750.0,0.31843599]
[1756803138297,0.91665691,110760.0,110750.0,0.31327599]
[1756803139767,0.91665691,110760.0,110750.0,0.31541599]
[1756803139975,0.91665691,110760.0,110750.0,0.31843599]
[1756803141374,0.91665691,110760.0,110750.0,0.31327599]
[1756803141558,0.91665691,110760.0,110750.0,0.16437599]
[1756803141768,0.91665691,110760.0,110750.0,0.31843599]
[1756803144630,0.91665691,110760.0,110750.0,0.49902289]
[1756803144849,0.91665691,110760.0,110750.0,0.31843599]
[1756803145040,0.91665691,110760.0,110750.0,0.49902289]
[1756803145301,0.91467691,110760.0,110750.0,0.49902289]
[1756803149875,0.91665691,110760.0,110750.0,0.31327599]
[1756803150418,0.91665691,110760.0,110750.0,0.49600289]
[1756803150622,0.91665691,110760.0,110750.0,0.49902289]
[1756803151112,0.91467691,110760.0,110750.0,0.49902289]
[1756803151915,0.91467691,110760.0,110750.0,0.31843599]
[1756803152332,0.91665691,110760.0,110750.0,0.31843599]
[1756803153305,0.91665691,110760.0,110750.0,0.24899599]
[1756803153519,0.91677933,110760.0,110750.0,0.24899599]
[1756803154614,0.91677933,110760.0,110750.0,0.24383599]
[1756803155017,0.91958933,110760.0,110750.0,0.24383599]
[1756803155196,0.91677933,110760.0,110750.0,0.24383599]
[1756803155344,0.91677933,110760.0,110750.0,0.24899599]
[1756803157355,0.91677933,110760.0,110750.0,0.24895599]
[1756803158158,0.91677933,110760.0,110750.0,0.09707599]
[1756803158307,0.91677933,110760.0,110750.0,0.24895599]
[1756803159587,0.91677933,110760.0,110750.0,0.42954289]
[1756803159833,0.91479933,110760.0,110750.0,0.42954289]
[1756803161451,0.91479933,110760.0,110750.0,0.24895599]
[1756803162097,0.91479933,110760.0,110750.0,0.42954289]
[1756803162273,0.91674933,110760.0,110750.0,0.24895599]
[1756803163021,0.91479933,110760.0,110750.0,0.42954289]
[1756803164012,0.91674933,110760.0,110750.0,0.24895599]
[1756803164437,0.91674933,110760.0,110750.0,0.42954289]
[1756803164637,0.91479933,110760.0,110750.0,0.42954289]
[1756803165759,0.91674933,110760.0,110750.0,0.42954289]
[1756803167461,0.91674933,110760.0,110750.0,0.24895599]
[1756803167921,0.91674933,110760.0,110750.0,0.24593599]
[1756803168126,0.91674933,110760.0,110750.0,0.24379599]
[1756803169545,1.27241717,110760.0,110750.0,0.24375599]
[1756803170482,0.91956933,110760.0,110750.0,0.24375599]